bitfinex/quotes_BTCUSD_20220211
["timestamp","ask_amount","ask_price","bid_price","bid_amount"]
[1644580507203,0.0576,43444.0,43442.0,0.00079391]
[1644580507397,0.1016,43443.0,43441.0,0.01021547]
[1644580507596,0.1016,43443.0,43442.0,0.00064794]
[1644580507796,0.1516,43443.0,43442.0,0.00064794]
[1644580507995,0.1016,43443.0,43442.0,0.00064794]
[1644580508195,0.47358045,43443.0,43442.0,0.00064794]
[1644580508396,0.52358045,43443.0,43442.0,0.00064794]
[1644580508595,0.81845827,43443.0,43441.0,0.01021547]
[1644580508798,0.057596,43442.0,43441.0,0.01]
[1644580509096,0.109196,43442.0,43441.0,0.01]
[1644580509303,0.109196,43442.0,43436.0,0.0021]
[1644580509305,0.90085,43440.0,43436.0,0.0021]
[1644580509541,0.05,43437.0,43425.0,0.0022]
[1644580509699,0.05,43437.0,43434.0,0.001]
[1644580509700,0.29488104,43435.0,43434.0,0.001]
[1644580509898,0.9,43434.0,43425.0,0.0022]
[1644580510160,0.34489444,43432.0,43425.0,0.0022]
[1644580510347,0.9,43428.0,43425.0,0.0022]
[1644580510649,0.56447951,43427.0,43425.0,0.0022]
[1644580510946,0.24577442,43426.0,43425.0,0.0022]
[1644580511147,0.29737442,43426.0,43425.0,0.0022]
[1644580511349,0.27466203,43424.0,43417.0,0.00327418]
[1644580511651,0.057623,43419.0,43417.0,0.00327418]
[1644580511849,0.0516,43418.0,43417.0,0.00327418]
[1644580512248,0.109221,43418.0,43417.0,0.001]
[1644580512848,0.109221,43418.0,43417.0,0.25042203]
[1644580513050,0.0516,43418.0,43417.0,0.25042203]
[1644580513654,0.0516,43423.0,43417.0,0.25042203]
[1644580514496,0.04974409,43423.0,43417.0,0.001]
[1644580514895,2.16357765,43420.0,43418.0,0.00020421]
[1644580515500,0.04974409,43423.0,43419.0,0.34270579]
[1644580516098,0.04974409,43423.0,43419.0,0.34338506]
[1644580517099,0.05761,43425.0,43419.0,0.34270579]
[1644580517302,0.05761,43425.0,43419.0,0.34338506]
[1644580517745,0.3,43424.0,43419.0,0.00067927]
[1644580517946,0.05761,43425.0,43419.0,0.00067927]
[1644580518343,0.05761,43425.0,43419.0,0.00067926]
[1644580518344,0.05761324,43425.0,43419.0,0.00067926]
[1644580518548,0.057613,43423.0,43419.0,0.00067926]
[1644580519343,0.057613,43423.0,43417.0,0.001]
[1644580519543,0.057613,43423.0,43419.0,0.00067927]
[1644580520145,0.27224025,43422.0,43419.0,0.00067927]
[1644580520346,0.27069429,43422.0,43419.0,0.00067927]
[1644580520546,0.057613,43423.0,43417.0,0.001]
[1644580520745,0.11522693,43423.0,43417.0,0.001]
[1644580520945,0.11522693,43423.0,43418.0,0.00043332]
[1644580521145,0.057614,43421.0,43418.0,0.00043332]
[1644580521398,0.26782389,43422.0,43418.0,0.00043332]
[1644580521798,0.26782389,43422.0,43417.0,0.001]
[1644580522001,0.44067789,43422.0,43417.0,0.001]
[1644580522603,0.057614,43421.0,43417.0,0.001]
[1644580523699,0.057613,43423.0,43417.0,0.001]
[1644580524898,0.057613,43423.0,43417.0,0.00121394]
[1644580525158,0.057617,43421.0,43417.0,0.00121394]
[1644580527154,0.11523441,43421.0,43417.0,0.00121394]
[1644580527758,0.057617,43421.0,43417.0,0.00121394]
[1644580528996,0.11523346,43421.0,43417.0,0.00121394]
[1644580529397,0.057617,43421.0,43417.0,0.00121394]
[1644580530800,0.057617,43421.0,43417.0,0.00133287]
[1644580531798,2.37126572,43421.0,43417.0,0.00133287]
[1644580531999,0.2677988,43420.0,43417.0,0.00133287]
[1644580532200,2.37126572,43421.0,43417.0,0.00133287]
[1644580532653,2.62884176,43421.0,43417.0,0.00133287]
[1644580533251,2.37126572,43421.0,43417.0,0.00133287]
[1644580533449,0.057617,43421.0,43417.0,0.00133287]
[1644580534450,0.40571776,43421.0,43417.0,0.00133287]
[1644580536055,0.40571776,43421.0,43415.0,0.00131157]
[1644580536256,0.40571776,43421.0,43416.0,0.00011893]
[1644580536493,0.40571776,43421.0,43416.0,0.00079763]
[1644580536996,2.38428523,43417.0,43416.0,0.00079763]
[1644580537396,2.38428523,43417.0,43416.0,0.00011893]
[1644580537601,2.43588523,43417.0,43416.0,0.00011893]
[1644580537798,2.51405865,43417.0,43416.0,0.00011893]
[1644580538003,2.67156416,43417.0,43416.0,0.00011893]
[1644580538208,0.65,43413.0,43412.0,0.0032205]
[1644580538503,0.7016,43413.0,43412.0,0.0032205]
[1644580538699,0.9,43412.0,43411.0,0.0121]
[1644580538903,0.9,43412.0,43410.0,0.00120364]
[1644580538904,0.9,43411.0,43410.0,0.00120364]
[1644580539099,1.009243,43411.0,43410.0,0.00120364]
[1644580539301,0.9,43410.0,43403.0,0.00081468]
[1644580539502,0.11680086,43409.0,43403.0,0.00081468]
[1644580539699,0.27430637,43409.0,43403.0,0.00081468]
[1644580539999,0.27430637,43409.0,43399.0,0.0011]
[1644580540249,0.33160884,43409.0,43399.0,0.0011]
[1644580540448,0.63160884,43409.0,43399.0,0.0011]
[1644580540650,0.33160884,43409.0,43399.0,0.0011]
[1644580540854,0.33160884,43409.0,43398.0,0.0011]
[1644580540855,0.95764239,43407.0,43398.0,0.0011]
[1644580541052,0.19301659,43399.0,43398.0,0.0011]
[1644580541255,0.31374659,43399.0,43398.0,0.0011]
[1644580541450,0.12073,43399.0,43398.0,0.0011]
[1644580541849,0.1215,43405.0,43398.0,0.0011]
[1644580542048,0.1215,43405.0,43393.0,0.05]
[1644580542049,0.0516,43404.0,43396.0,0.0172]
[1644580543451,0.38958698,43404.0,43396.0,0.0172]
[1644580543651,0.0516,43404.0,43398.0,0.00067677]
[1644580543901,0.0516,43404.0,43401.0,0.05]
[1644580544098,0.0516,43404.0,43398.0,0.00067677]
[1644580544099,0.92,43413.0,43403.0,0.05]
[1644580544299,0.42,43413.0,43406.0,0.05]
[1644580544699,0.42,43413.0,43402.0,0.43556177]
[1644580544899,0.42,43413.0,43407.0,0.00067662]
[1644580545797,0.42,43413.0,43403.0,0.32182656]
[1644580545798,0.25168,43412.0,43403.0,0.32182656]
[1644580546005,0.06309958,43412.0,43408.0,0.00067662]
[1644580546200,0.42,43413.0,43408.0,0.00067662]
[1644580546399,0.25814857,43411.0,43408.0,0.00067662]
[1644580546611,0.0122,43410.0,43408.0,0.00067662]
[1644580546804,2.47947623,43410.0,43408.0,0.00067662]
[1644580547102,2.47947623,43410.0,43396.0,0.138]
[1644580547301,2.47947623,43410.0,43400.0,0.00270693]
[1644580547302,0.07999232,43407.0,43400.0,0.00270693]
[1644580547503,0.057636,43406.0,43400.0,0.00270693]
[1644580548364,0.057636,43406.0,43398.0,0.34179684]
[1644580548671,0.0122,43410.0,43401.0,0.00067673]
[1644580548866,0.0122,43410.0,43403.0,0.05]
[1644580549064,0.0122,43410.0,43401.0,0.00067673]
[1644580549263,0.0122,43410.0,43407.0,0.35364261]
[1644580549466,0.0122,43410.0,43408.0,0.33127516]
[1644580549667,0.0122,43410.0,43403.0,0.00067669]
[1644580550668,0.06982872,43410.0,43405.0,0.2846137]
[1644580550972,0.06982872,43410.0,43404.0,0.00067667]
[1644580550973,0.32719146,43409.0,43404.0,0.00067667]
[1644580551799,0.32719146,43409.0,43401.0,0.115249]
[1644580552001,0.32719146,43409.0,43404.0,0.00067667]
[1644580552199,0.26955846,43409.0,43404.0,0.00067667]
[1644580552599,0.26955846,43409.0,43404.0,0.00088861]
[1644580552800,0.22127371,43407.0,43404.0,0.00088861]
[1644580553003,0.22127371,43407.0,43402.0,0.00021194]
[1644580553004,0.2901371,43406.0,43402.0,0.00021194]
[1644580553199,0.2901371,43406.0,43393.0,0.3906]
[1644580553200,0.057643,43404.0,43398.0,0.00021194]
[1644580553400,0.27464028,43403.0,43398.0,0.00270709]
[1644580554000,0.25396309,43402.0,43398.0,0.00270709]
[1644580554200,0.27464028,43403.0,43397.0,0.00021194]
[1644580554402,0.27464028,43403.0,43398.0,0.00067676]
[1644580554802,0.05763994,43402.0,43398.0,0.00067676]
[1644580555003,0.27464028,43403.0,43398.0,0.00067676]
[1644580555451,0.29812047,43404.0,43397.0,0.00021194]
[1644580555647,0.27377325,43403.0,43398.0,0.00067676]
[1644580555847,0.26810756,43403.0,43398.0,0.00067676]
[1644580556248,0.32653465,43403.0,43398.0,0.00067676]
[1644580556648,0.32653465,43403.0,43397.0,0.00021194]
[1644580556848,0.32653465,43403.0,43398.0,0.00067676]
[1644580557050,0.38416942,43403.0,43398.0,0.00067676]
[1644580557449,0.11527277,43403.0,43398.0,0.00067676]
[1644580557848,0.11527277,43403.0,43397.0,0.00021194]
[1644580558047,0.057638,43403.0,43398.0,0.00067676]
[1644580558248,0.0576389,43402.0,43398.0,0.00067676]
[1644580559102,0.0576389,43402.0,43397.0,0.00021194]
[1644580559300,0.0576389,43402.0,43398.0,0.00067677]
[1644580560101,0.0576389,43402.0,43398.0,0.00088871]
[1644580560102,0.06798203,43400.0,43398.0,0.00088871]
[1644580560305,0.06798203,43400.0,43397.0,0.00021194]
[1644580560306,0.26049362,43398.0,43397.0,0.00021194]
[1644580560501,0.26049362,43398.0,43396.0,0.0172]
[1644580560700,0.06798203,43400.0,43396.0,0.0172]
[1644580560900,0.16688704,43402.0,43396.0,0.0172]
[1644580561100,0.16688704,43402.0,43396.0,0.01741194]
[1644580561401,0.42777902,43402.0,43396.0,0.01741194]
[1644580561606,0.42777902,43402.0,43397.0,0.00067679]
[1644580561799,0.20459052,43399.0,43397.0,0.00088873]
[1644580562002,0.13110155,43401.0,43397.0,0.00067679]
[1644580562201,0.05764115,43401.0,43397.0,0.00088873]
[1644580562653,0.05764115,43401.0,43397.0,0.00021194]
[1644580562846,0.05764115,43401.0,43397.0,0.00067679]
[1644580563046,0.33128531,43401.0,43397.0,0.00088873]
[1644580563246,0.33341936,43401.0,43397.0,0.00088873]
[1644580563946,0.33341936,43401.0,43397.0,0.00021194]
[1644580564150,0.33341936,43401.0,43397.0,0.00067679]
[1644580564347,0.39106036,43401.0,43397.0,0.00088873]
[1644580565149,0.39106036,43401.0,43397.0,0.00021194]
[1644580565349,0.39106036,43401.0,43397.0,0.00067679]
[1644580565548,0.39106036,43401.0,43397.0,0.00088873]
[1644580566998,0.33341936,43401.0,43397.0,0.00088873]
[1644580567200,0.05764115,43401.0,43397.0,0.00088873]
[1644580567399,0.05764115,43401.0,43397.0,0.00021194]
[1644580567600,0.05764115,43401.0,43396.0,0.0172]
[1644580567801,0.05764115,43401.0,43397.0,0.00067679]
[1644580568000,0.05764115,43401.0,43397.0,0.05852573]
[1644580568801,0.05764115,43401.0,43397.0,0.00021194]
[1644580569002,0.05764115,43401.0,43397.0,0.00067679]
[1644580569201,0.05764115,43401.0,43397.0,0.00088873]
[1644580570001,0.05764115,43401.0,43397.0,0.00021194]
[1644580570250,0.05764115,43401.0,43397.0,0.00067679]
[1644580570451,0.05764115,43401.0,43397.0,0.00088873]
[1644580570858,0.16138815,43401.0,43397.0,0.00088873]
[1644580571050,0.21138815,43401.0,43397.0,0.00021194]
[1644580571251,0.26542586,43398.0,43396.0,0.0172]
[1644580571449,0.12091758,43397.0,43396.0,0.0172]
[1644580571850,0.115295,43399.0,43396.0,0.0172]
[1644580572057,0.0461,43398.0,43396.0,0.0172]
[1644580572250,0.0461,43400.0,43396.0,0.0172]
[1644580572852,0.28129232,43399.0,43396.0,0.0172]
[1644580573053,0.05764837,43398.0,43396.0,0.0172]
[1644580573251,0.26946254,43397.0,43396.0,0.0172]
[1644580573453,0.32710754,43397.0,43396.0,0.0172]
[1644580577506,0.057645,43397.0,43396.0,0.0172]
[1644580580769,0.33296329,43397.0,43396.0,0.00884879]
[1644580581503,0.52946098,43397.0,43396.0,0.00884879]
[1644580581701,0.25414269,43397.0,43396.0,0.00884879]
[1644580582303,0.057645,43397.0,43396.0,0.00884879]
[1644580582705,0.25414269,43397.0,43396.0,0.00884879]
[1644580583104,0.19649769,43397.0,43396.0,0.00884879]
[1644580583307,0.19649769,43399.0,43396.0,0.00884879]
[1644580583505,0.19649769,43399.0,43396.0,0.00906073]
[1644580583904,0.19649769,43399.0,43396.0,0.00884879]
[1644580584104,0.19649769,43400.0,43396.0,0.06648479]
[1644580584507,0.05763962,43399.0,43396.0,0.06648479]
[1644580585159,0.19649769,43400.0,43396.0,0.12412279]
[1644580585350,0.19649769,43400.0,43397.0,0.057638]
[1644580585549,0.19649769,43400.0,43397.0,0.05784994]
[1644580586149,0.19649769,43400.0,43398.0,0.057636]
[1644580586551,0.05763615,43401.0,43399.0,0.31512886]
[1644580586552,0.19649769,43401.0,43399.0,0.31512886]
[1644580586952,0.19649769,43401.0,43399.0,0.25625086]
[1644580587155,0.02685804,43399.0,43398.0,0.00021194]
[1644580587353,0.02685804,43399.0,43398.0,0.3014739]
[1644580587758,0.02685804,43399.0,43398.0,0.6250099]
[1644580588351,0.02685804,43399.0,43398.0,0.95032266]
[1644580589199,0.02685804,43399.0,43398.0,1.00032266]
[1644580589399,0.19649769,43407.0,43398.0,1.00032266]
[1644580589400,0.19649769,43407.0,43401.0,0.115242]
[1644580589600,0.0122,43410.0,43401.0,0.115242]
[1644580589601,0.19649769,43408.0,43402.0,0.323536]
[1644580589799,0.19649769,43408.0,43401.0,0.05783094]
[1644580589999,0.19649769,43408.0,43402.0,0.32374794]
[1644580590198,0.19649769,43408.0,43405.0,0.29693372]
[1644580590598,0.19649769,43408.0,43406.0,0.057622]
[1644580590801,0.0122,43410.0,43406.0,0.057622]
[1644580590802,0.20869769,43410.0,43406.0,0.057622]
[1644580591205,0.0122,43410.0,43407.0,0.323536]
[1644580591600,0.0122,43410.0,43407.0,0.72893023]
[1644580591802,0.0122,43410.0,43408.0,0.323536]
[1644580592402,0.0122,43410.0,43407.0,0.46300523]
[1644580592658,0.0122,43410.0,43408.0,0.3849041]
[1644580593853,0.0122,43410.0,43407.0,0.11522]
[1644580594252,0.0022,43410.0,43407.0,0.11522]
[1644580594454,0.0022,43410.0,43407.0,0.057611]
[1644580595954,0.0022,43410.0,43406.0,0.00067341]
[1644580596596,0.0022,43410.0,43405.0,0.40444359]
[1644580596796,0.0022,43410.0,43406.0,0.00067342]
[1644580597501,0.47405997,43410.0,43406.0,0.00067342]
[1644580597700,0.19671193,43409.0,43406.0,0.00067342]
[1644580597897,0.19671193,43408.0,43402.0,0.00021194]
[1644580598098,0.19671193,43408.0,43406.0,0.00067342]
[1644580598701,0.19891193,43410.0,43406.0,0.00067342]
[1644580598899,0.0022,43410.0,43406.0,0.00067342]
[1644580599098,0.0022,43410.0,43407.0,0.323942]
[1644580599299,0.0022,43410.0,43408.0,0.323942]
[1644580599497,0.0022,43410.0,43408.0,0.60957203]
[1644580599698,0.0022,43410.0,43408.0,0.057614]
[1644580600553,0.0022,43410.0,43405.0,0.115242]
[1644580601352,2.3471719,43408.0,43406.0,0.057621]
[1644580601753,0.07459646,43407.0,43406.0,0.057621]
[1644580602054,0.07459646,43407.0,43401.0,0.06517058]
[1644580602055,0.19668111,43402.0,43401.0,0.06517058]
[1644580602255,0.19668111,43402.0,43401.0,0.06495864]
[1644580602452,0.19668111,43402.0,43397.0,0.00021194]
[1644580602653,0.19668111,43402.0,43396.0,0.00884879]
[1644580602654,0.08940608,43400.0,43396.0,0.00884879]
[1644580602957,0.08940608,43400.0,43399.0,0.00067457]
[1644580603152,0.19671193,43403.0,43399.0,0.00067457]
[1644580603353,0.19671193,43404.0,43399.0,0.00067457]
[1644580603558,0.19671193,43407.0,43400.0,0.323942]
[1644580603753,0.19671193,43409.0,43400.0,0.00021194]
[1644580604001,0.19671193,43409.0,43403.0,0.057617]
[1644580604201,0.26263745,43408.0,43404.0,0.057622]
[1644580604701,0.19671193,43409.0,43404.0,0.057622]
[1644580604901,0.19671193,43409.0,43404.0,0.115245]
[1644580605300,0.19671193,43408.0,43404.0,0.1159178]
[1644580605900,0.19671193,43409.0,43404.0,0.1159178]
[1644580606299,0.19671193,43409.0,43404.0,0.172869]
[1644580606502,0.19671193,43409.0,43404.0,0.1159198]
[1644580606702,0.19671193,43409.0,43405.0,0.34720742]
[1644580606703,0.19534614,43409.0,43405.0,0.34720742]
[1644580607502,0.19534614,43409.0,43406.0,0.05762]
[1644580609054,0.19534614,43409.0,43406.0,0.05772042]
[1644580609255,0.0022,43410.0,43406.0,0.10772042]
[1644580609858,0.0022,43410.0,43406.0,0.05772042]
[1644580610056,0.0022,43410.0,43406.0,0.05839488]
[1644580611058,0.0022,43410.0,43406.0,0.05772042]
[1644580611261,0.0022,43410.0,43406.0,0.05839488]
[1644580611504,0.0022,43410.0,43406.0,0.00077488]
[1644580611704,0.07989213,43409.0,43406.0,0.00077488]
[1644580611904,0.28508383,43409.0,43406.0,0.00077488]
[1644580612306,0.24777452,43410.0,43406.0,0.00010042]
[1644580612503,0.0022,43410.0,43406.0,0.00010042]
[1644580612704,0.0022,43410.0,43408.0,0.34659353]
[1644580612906,0.0022,43410.0,43408.0,0.46193695]
[1644580614104,0.0022,43410.0,43408.0,0.34669395]
[1644580615160,0.0022,43410.0,43408.0,0.00010042]
[1644580616255,0.0022,43410.0,43409.0,0.26885852]
[1644580616462,0.0022,43410.0,43409.0,0.26895894]
[1644580617059,0.0022,43410.0,43409.0,0.00010042]
[1644580618062,0.0022,43410.0,43409.0,0.27409864]
[1644580619303,1.98619581,43410.0,43409.0,0.00010042]
[1644580620804,2.18265748,43410.0,43409.0,0.00010042]
[1644580621006,1.98619581,43410.0,43409.0,0.00010042]
[1644580622308,1.98619581,43410.0,43409.0,2.856e-05]
[1644580622508,2.18265748,43410.0,43409.0,2.856e-05]
[1644580622757,2.23177033,43410.0,43409.0,2.856e-05]
[1644580622958,2.03619581,43410.0,43409.0,2.856e-05]
[1644580623556,1.98619581,43410.0,43409.0,2.856e-05]
[1644580624155,2.03619581,43410.0,43409.0,2.856e-05]
[1644580624361,2.11994933,43410.0,43409.0,2.856e-05]
[1644580624563,2.33098515,43410.0,43409.0,2.856e-05]
[1644580624761,2.03619581,43410.0,43409.0,2.856e-05]
[1644580625762,2.09382335,43410.0,43409.0,2.856e-05]
[1644580626061,2.3885197,43410.0,43409.0,2.856e-05]
[1644580626701,2.33089216,43410.0,43409.0,2.856e-05]
[1644580627302,2.28089216,43410.0,43409.0,2.856e-05]
[1644580627501,1.98619581,43410.0,43409.0,2.856e-05]
[1644580629104,0.24781262,43410.0,43409.0,2.856e-05]
[1644580629302,0.0022,43410.0,43409.0,2.856e-05]
[1644580630002,0.0022,43410.0,43409.0,0.74827692]
[1644580630956,0.19872937,43410.0,43409.0,1.07221892]
[1644580631156,0.0022,43410.0,43409.0,1.07221892]
[1644580631363,0.00115303,43410.0,43409.0,1.07221892]
[1644580631555,0.24561262,43414.0,43411.0,0.115225]
[1644580631755,0.24561262,43414.0,43411.0,0.11540704]
[1644580632058,0.24561262,43414.0,43409.0,0.74824836]
[1644580632059,0.24561262,43414.0,43409.0,0.39616869]
[1644580632254,0.24561262,43414.0,43410.0,0.00018204]
[1644580632654,0.24561262,43414.0,43410.0,0.05779404]
[1644580633054,0.24561262,43414.0,43411.0,0.64410486]
[1644580633255,0.24561262,43414.0,43412.0,0.323942]
[1644580633458,0.24561262,43414.0,43412.0,0.32412404]
[1644580633905,0.24561262,43414.0,43412.0,0.00018204]
[1644580634105,2.39104694,43413.0,43412.0,0.00018204]
[1644580635106,2.14543432,43413.0,43412.0,0.00018204]
[1644580635609,0.24569052,43414.0,43412.0,0.00018204]
[1644580636408,1.7186372,43413.0,43412.0,0.00018204]
[1644580637407,0.24569052,43414.0,43412.0,0.00018204]
[1644580637861,0.24569052,43414.0,43413.0,0.323942]
[1644580638059,0.24569052,43414.0,43413.0,0.32412404]
[1644580638464,0.24569052,43415.0,43413.0,0.32412404]
[1644580638860,0.24569052,43415.0,43413.0,0.00018204]
[1644580639060,0.24569052,43414.0,43413.0,0.00018204]
[1644580639460,0.24569052,43415.0,43413.0,0.00018204]
[1644580640262,2.47486885,43414.0,43413.0,0.00018204]
[1644580640461,3.03904313,43414.0,43413.0,0.00018204]
[1644580640863,2.74434678,43414.0,43413.0,0.00018204]
[1644580642106,2.74434678,43414.0,43413.0,2.04e-06]
[1644580642308,0.2164697,43411.0,43408.0,0.00067443]
[1644580642515,0.2164697,43411.0,43396.0,0.94629695]
[1644580642516,0.26274597,43402.0,43396.0,0.78106073]
[1644580642711,0.26274597,43402.0,43401.0,0.00269817]
[1644580642909,0.55830176,43402.0,43401.0,0.00269817]
[1644580643106,0.60440176,43402.0,43401.0,0.00269817]
[1644580643307,0.66204276,43402.0,43401.0,0.00269817]
[1644580643606,1.07884461,43402.0,43401.0,0.00269817]
[1644580643806,1.07884461,43402.0,43399.0,0.00067457]
[1644580644008,0.19642387,43400.0,43399.0,0.00067457]
[1644580644207,0.29165579,43400.0,43399.0,0.00067457]
[1644580644608,0.0461,43400.0,43399.0,0.00067457]
[1644580644807,0.0461,43400.0,43396.0,0.00884879]
[1644580645013,0.25403785,43399.0,43397.0,0.0006746]
[1644580645260,0.19639927,43398.0,43397.0,0.0006746]
[1644580645458,0.19639927,43399.0,43397.0,0.0006746]
[1644580645659,0.59298795,43402.0,43397.0,0.0006746]
[1644580645660,0.19639927,43400.0,43397.0,0.0006746]
[1644580646059,0.19639927,43400.0,43396.0,0.00884879]
[1644580646258,0.19639927,43400.0,43396.0,0.0095234]
[1644580647059,0.19639927,43399.0,43396.0,0.00958494]
[1644580647360,0.19639927,43399.0,43396.0,0.00891033]
[1644580647564,0.19639927,43400.0,43396.0,0.00958495]
[1644580647760,0.24639927,43400.0,43396.0,0.00958495]
[1644580648563,0.24639927,43400.0,43396.0,0.00891033]
[1644580648762,0.24639927,43400.0,43396.0,0.00958495]
[1644580649208,0.24452274,43400.0,43396.0,0.00958495]
[1644580649710,0.24249927,43400.0,43396.0,0.00891033]
[1644580650008,0.24249927,43400.0,43396.0,0.00958495]
[1644580650910,0.24249927,43400.0,43396.0,0.00891033]
[1644580651110,0.24249927,43400.0,43396.0,0.00953787]
[1644580652112,0.24249927,43400.0,43396.0,0.00891033]
[1644580652314,0.24249927,43400.0,43396.0,0.00953787]
[1644580652662,0.0461,43400.0,43396.0,0.00953787]
[1644580653357,0.0461,43400.0,43396.0,0.00891033]
[1644580653558,0.0461,43400.0,43396.0,0.00953787]
[1644580654561,0.0461,43400.0,43396.0,0.00891033]
[1644580654760,0.0461,43400.0,43396.0,0.00946886]
[1644580655760,0.0461,43400.0,43396.0,0.00891033]
[1644580655960,0.0461,43400.0,43396.0,0.00946886]
[1644580656161,0.0461,43400.0,43396.0,0.31406526]
[1644580656810,0.0461,43400.0,43396.0,0.00946886]
[1644580657011,0.0461,43400.0,43396.0,0.00891033]
[1644580657210,0.0461,43400.0,43396.0,0.00946886]
[1644580658111,0.0461,43400.0,43396.0,0.00891033]
[1644580658310,0.0461,43400.0,43396.0,0.00947896]
[1644580659311,0.0461,43400.0,43396.0,0.00891033]
[1644580659515,0.0461,43400.0,43396.0,0.00947896]
[1644580660161,0.10373837,43400.0,43396.0,0.00947896]
[1644580660559,0.10373837,43400.0,43396.0,0.00891033]
[1644580660754,0.10373837,43400.0,43396.0,0.00947896]
[1644580661155,0.65146752,43402.0,43396.0,0.00947896]
[1644580661357,0.39743216,43402.0,43396.0,0.00947896]
[1644580661654,0.39743216,43402.0,43396.0,0.00891033]
[1644580662057,0.39743216,43402.0,43393.0,0.05276445]
[1644580662455,0.64617631,43402.0,43393.0,0.05276445]
[1644580662856,0.70381431,43402.0,43393.0,0.05276445]
[1644580663160,0.95784926,43402.0,43393.0,0.4051496]
[1644580663356,0.70910511,43402.0,43393.0,0.4051496]
[1644580663757,0.65146711,43402.0,43393.0,0.4051496]
[1644580664012,0.65146711,43402.0,43393.0,0.4627846]
[1644580664211,0.70910411,43402.0,43393.0,0.4051496]
[1644580665011,0.70910411,43402.0,43393.0,0.05276445]
[1644580665213,0.59383143,43402.0,43393.0,0.05276445]
[1644580665512,0.59383143,43402.0,43395.0,0.00067322]
[1644580666511,0.59373212,43402.0,43393.0,0.05276445]
[1644580666714,0.59373212,43402.0,43395.0,0.00067322]
[1644580667016,0.65136912,43402.0,43396.0,0.057635]
[1644580667215,0.45506916,43402.0,43396.0,0.057635]
[1644580668057,0.057638,43401.0,43396.0,0.057635]
[1644580668262,0.11527498,43401.0,43396.0,0.057635]
[1644580668457,0.05763698,43401.0,43396.0,0.057635]
[1644580669156,0.59373212,43402.0,43396.0,0.057635]
[1644580669356,0.39743216,43402.0,43396.0,0.057635]
[1644580669558,0.59373212,43402.0,43396.0,0.057635]
[1644580669859,0.54373212,43402.0,43396.0,0.057635]
[1644580670256,0.60136812,43402.0,43396.0,0.057635]
[1644580670657,0.40506816,43402.0,43396.0,0.057635]
[1644580670861,0.24629996,43403.0,43396.0,0.057635]
[1644580671060,0.19629996,43405.0,43396.0,0.33857885]
[1644580671264,0.19629996,43406.0,43396.0,0.33857885]
[1644580671712,0.19629996,43406.0,43400.0,0.31946421]
[1644580671916,0.19629996,43407.0,43401.0,0.057626]
[1644580672114,0.27336005,43405.0,43401.0,0.057626]
[1644580672912,0.32336005,43405.0,43401.0,0.057626]
[1644580673113,0.32336005,43405.0,43401.0,0.115252]
[1644580673714,0.05,43405.0,43401.0,0.115252]
[1644580674316,0.05,43405.0,43401.0,0.057626]
[1644580674716,0.19629996,43406.0,43401.0,0.057626]
[1644580674917,0.19629996,43407.0,43401.0,0.057626]
[1644580675364,0.19629996,43406.0,43401.0,0.057626]
[1644580675563,0.31156712,43406.0,43401.0,0.057626]
[1644580675763,0.19629996,43405.0,43400.0,0.057635]
[1644580675963,0.19629996,43405.0,43395.0,0.00067322]
[1644580676169,0.45900551,43405.0,43393.0,0.29123488]
[1644580676363,0.45900551,43405.0,43395.0,0.00067322]
[1644580676563,0.25314655,43402.0,43396.0,0.33178028]
[1644580676764,0.25314655,43402.0,43397.0,0.323942]
[1644580676966,0.45900551,43405.0,43397.0,0.65893057]
[1644580677164,0.45900551,43405.0,43397.0,0.33498857]
[1644580677366,0.19629996,43405.0,43397.0,0.33498857]
[1644580677964,0.25393148,43405.0,43397.0,0.33498857]
[1644580678166,0.455301,43404.0,43397.0,0.057634]
[1644580678467,0.31663604,43404.0,43397.0,0.057634]
[1644580679611,0.512936,43404.0,43397.0,0.057634]
[1644580679812,0.057636,43403.0,43397.0,0.057634]
[1644580680015,0.057636,43403.0,43396.0,0.34341474]
[1644580680016,0.057638,43402.0,43396.0,0.34341474]
[1644580680212,0.057638,43402.0,43396.0,0.28577474]
[1644580680815,0.11527824,43403.0,43396.0,0.28577474]
[1644580680816,0.455301,43404.0,43396.0,0.40103774]
[1644580681016,0.057635,43403.0,43397.0,0.323942]
[1644580681413,0.057635,43403.0,43396.0,0.115263]
[1644580681622,0.057635,43403.0,43397.0,0.057638]
[1644580682213,0.11526983,43403.0,43397.0,0.057638]
[1644580682665,0.057636,43402.0,43397.0,0.057638]
[1644580683259,0.057636,43402.0,43399.0,0.057636]
[1644580684062,0.11527154,43402.0,43399.0,0.057636]
[1644580684464,0.11527154,43402.0,43399.0,0.05753503]
[1644580684662,0.19629996,43403.0,43399.0,0.05753503]
[1644580685464,0.19629996,43402.0,43399.0,0.05753503]
[1644580686611,0.19629996,43401.0,43399.0,0.05753503]
[1644580691368,100.19629996,43401.0,43399.0,0.05753503]
[1644580692070,0.85,43400.0,43395.0,0.00067217]
[1644580692268,1.04629996,43400.0,43395.0,0.00067217]
[1644580692867,0.19629996,43400.0,43395.0,0.00067217]
[1644580693069,0.19629996,43400.0,43397.0,0.115267]
[1644580693368,100.19629996,43401.0,43397.0,0.115267]
[1644580693568,0.19629996,43400.0,43397.0,0.115267]
[1644580693767,100.0,43401.0,43397.0,0.115267]
[1644580693768,100.19629996,43401.0,43397.0,0.115267]
[1644580694411,100.0,43401.0,43397.0,0.115267]
[1644580694613,100.19629996,43401.0,43397.0,0.115267]
[1644580695212,100.0,43401.0,43397.0,0.115267]
[1644580695412,100.19629996,43401.0,43397.0,0.115267]
[1644580695612,100.0,43401.0,43397.0,0.115267]
[1644580696011,0.45,43399.0,43388.0,0.0011]
[1644580696815,0.45,43399.0,43391.0,0.057634]
[1644580697014,0.45,43399.0,43393.0,0.057635]
[1644580697213,0.6,43398.0,43391.0,0.1729]
[1644580698565,0.19394276,43393.0,43391.0,0.496899]
[1644580698765,0.19394276,43393.0,43392.0,0.323999]
[1644580699164,0.19394276,43393.0,43392.0,0.423999]
[1644580701917,0.19394276,43393.0,43392.0,0.42414856]
[1644580703916,100.0,43401.0,43392.0,0.42414856]
[1644580704118,0.00070535,43400.0,43394.0,0.05762967]
[1644580704318,0.00070535,43400.0,43394.0,0.00014956]
[1644580705017,0.19397533,43399.0,43396.0,0.34706919]
[1644580705267,0.19397533,43399.0,43396.0,0.40484875]
[1644580705469,0.19397533,43399.0,43397.0,0.057629]
[1644580705668,0.19397533,43399.0,43397.0,0.10947856]
[1644580706065,0.32846757,43398.0,43397.0,0.10947856]
[1644580706471,0.32846757,43398.0,43397.0,0.35559067]
[1644580706869,0.32846757,43398.0,43397.0,0.45559067]
[1644580707069,0.32846757,43398.0,43397.0,0.26710122]